[Event "Titled Tuesday Blitz August 1 Early 2023"]
[White "Carlsen, Magnus"]
[Black "Aronian, Levon"]
[WhiteFideId "1503014"]
[BlackFideId "13300474"]
[WhiteElo "3252"]
[BlackElo "3084"]
[Result "1-0"]
[Round "9"]
[TimeControl "180+1"]
[Date "2023.08.01"]
[WhiteClock "0:00:10"]
[BlackClock "0:00:01"]
[Board "1"]

1. c4 {[%clk 0:02:47]}  e5 {[%clk 0:02:57]} 2. Nc3 {[%clk 0:02:47]}  Nf6 {[%clk 0:02:57]} 3. g3 {[%clk 0:02:45]}  Bb4 {[%clk 0:02:57]} 4. e4 {[%clk 0:02:44]}  Bxc3 {[%clk 0:02:56]} 5. bxc3 {[%clk 0:02:39]}  O-O {[%clk 0:02:49]} 6. f3 {[%clk 0:02:39]}  d6 {[%clk 0:02:25]} 7. d4 {[%clk 0:02:38]}  Nc6 {[%clk 0:02:21]} 8. Nh3 {[%clk 0:02:30]}  Nd7 {[%clk 0:02:14]} 9. Nf2 {[%clk 0:02:28]}  b6 {[%clk 0:02:14]} 10. h4 {[%clk 0:02:25]}  Ba6 {[%clk 0:02:12]} 11. h5 {[%clk 0:02:11]}  h6 {[%clk 0:02:09]} 12. g4 {[%clk 0:02:08]}  Na5 {[%clk 0:01:58]} 13. Rg1 {[%clk 0:01:49]}  f6 {[%clk 0:01:51]} 14. Qa4 {[%clk 0:01:48]}  c5 {[%clk 0:01:39]} 15. d5 {[%clk 0:01:45]}  Qe8 {[%clk 0:01:34]} 16. Nd1 {[%clk 0:01:42]}  Nb8 {[%clk 0:01:33]} 17. Qxe8 {[%clk 0:01:42]}  Rxe8 {[%clk 0:01:34]} 18. Ne3 {[%clk 0:01:43]}  Nd7 {[%clk 0:01:33]} 19. Nf5 {[%clk 0:01:40]}  Nb7 {[%clk 0:01:14]} 20. a4 {[%clk 0:01:40]}  Nf8 {[%clk 0:01:04]} 21. Rg2 {[%clk 0:01:25]}  Rad8 {[%clk 0:00:58]} 22. Raa2 {[%clk 0:01:08]}  Na5 {[%clk 0:00:57]} 23. g5 {[%clk 0:01:03]}  fxg5 {[%clk 0:00:52]} 24. Bxg5 {[%clk 0:01:04]}  hxg5 {[%clk 0:00:50]} 25. Rxg5 {[%clk 0:01:04]}  Rd7 {[%clk 0:00:48]} 26. Rag2 {[%clk 0:01:04]}  Ree7 {[%clk 0:00:48]} 27. h6 {[%clk 0:00:54]}  g6 {[%clk 0:00:45]} 28. Rxg6+ {[%clk 0:00:52]}  Nxg6 {[%clk 0:00:44]} 29. Rxg6+ {[%clk 0:00:53]}  Kh7 {[%clk 0:00:33]} 30. Nxe7 {[%clk 0:00:53]}  Rxe7 {[%clk 0:00:33]} 31. Rxd6 {[%clk 0:00:53]}  Bc8 {[%clk 0:00:27]} 32. Kf2 {[%clk 0:00:41]}  Nb7 {[%clk 0:00:11]} 33. Rc6 {[%clk 0:00:36]}  Re8 {[%clk 0:00:09]} 34. f4 {[%clk 0:00:29]}  Rf8 {[%clk 0:00:09]} 35. Ke1 {[%clk 0:00:22]}  Na5 {[%clk 0:00:04]} 36. Rc7+ {[%clk 0:00:19]}  Kxh6 {[%clk 0:00:04]} 37. fxe5 {[%clk 0:00:20]}  Re8 {[%clk 0:00:04]} 38. Kd2 {[%clk 0:00:17]}  Kg5 {[%clk 0:00:04]} 39. Ke3 {[%clk 0:00:17]}  Ba6 {[%clk 0:00:02]} 40. e6 {[%clk 0:00:12]}  Bxc4 {[%clk 0:00:02]} 41. Rg7+ {[%clk 0:00:12]}  Kf6 {[%clk 0:00:02]} 42. Rf7+ {[%clk 0:00:12]}  Kg6 {[%clk 0:00:03]} 43. Bh3 {[%clk 0:00:12]}  Bb3 {[%clk 0:00:02]} 44. Kf4 {[%clk 0:00:12]}  Kh6 {[%clk 0:00:01]} 45. Bf5 {[%clk 0:00:13]}  Rh8 {[%clk 0:00:01]} 46. e7 {[%clk 0:00:10]} 1-0


[Site "https://www.chess.com"]

[Event "Titled Tuesday Blitz August 1 Early 2023"]
[White "Shimanov, Aleksandr"]
[Black "Andreikin, Dmitry"]
[WhiteFideId "4198603"]
[BlackFideId "4158814"]
[WhiteElo "2961"]
[BlackElo "3057"]
[Result "1/2-1/2"]
[Round "9"]
[TimeControl "180+1"]
[Date "2023.08.01"]
[WhiteClock "0:00:04"]
[BlackClock "0:00:05"]
[Board "3"]

1. e4 {[%clk 0:02:59]}  c5 {[%clk 0:02:58]} 2. Nf3 {[%clk 0:02:56]}  g6 {[%clk 0:02:58]} 3. c3 {[%clk 0:02:44]}  d5 {[%clk 0:02:55]} 4. exd5 {[%clk 0:02:44]}  Qxd5 {[%clk 0:02:56]} 5. d4 {[%clk 0:02:44]}  Nf6 {[%clk 0:02:54]} 6. Be3 {[%clk 0:02:40]}  Bg7 {[%clk 0:02:53]} 7. Nbd2 {[%clk 0:02:37]}  cxd4 {[%clk 0:02:46]} 8. Bxd4 {[%clk 0:02:26]}  Nc6 {[%clk 0:02:41]} 9. Bc4 {[%clk 0:02:26]}  Qh5 {[%clk 0:02:41]} 10. Be3 {[%clk 0:02:24]}  O-O {[%clk 0:02:35]} 11. h3 {[%clk 0:02:22]}  Ng4 {[%clk 0:02:32]} 12. Bf4 {[%clk 0:02:18]}  e5 {[%clk 0:02:19]} 13. Bg3 {[%clk 0:02:15]}  e4 {[%clk 0:02:09]} 14. Nxe4 {[%clk 0:01:26]}  Re8 {[%clk 0:02:08]} 15. O-O {[%clk 0:01:08]}  Rxe4 {[%clk 0:02:07]} 16. hxg4 {[%clk 0:01:09]}  Bxg4 {[%clk 0:02:00]} 17. Qd5 {[%clk 0:01:08]}  Bxf3 {[%clk 0:01:20]} 18. gxf3 {[%clk 0:01:04]}  Qxd5 {[%clk 0:00:52]} 19. Bxd5 {[%clk 0:01:05]}  Re2 {[%clk 0:00:53]} 20. Rab1 {[%clk 0:01:04]}  Rd8 {[%clk 0:00:52]} 21. Rfd1 {[%clk 0:01:01]}  h5 {[%clk 0:00:48]} 22. Bxc6 {[%clk 0:00:27]}  Rxd1+ {[%clk 0:00:46]} 23. Rxd1 {[%clk 0:00:28]}  bxc6 {[%clk 0:00:46]} 24. Rd8+ {[%clk 0:00:29]}  Kh7 {[%clk 0:00:45]} 25. Rd7 {[%clk 0:00:29]}  g5 {[%clk 0:00:38]} 26. Rxf7 {[%clk 0:00:26]}  Kg6 {[%clk 0:00:37]} 27. Rb7 {[%clk 0:00:26]}  h4 {[%clk 0:00:35]} 28. Bb8 {[%clk 0:00:26]}  h3 {[%clk 0:00:32]} 29. Kh2 {[%clk 0:00:25]}  Rxf2+ {[%clk 0:00:32]} 30. Kxh3 {[%clk 0:00:26]}  Rxf3+ {[%clk 0:00:32]} 31. Kg4 {[%clk 0:00:26]}  Rf2 {[%clk 0:00:26]} 32. a4 {[%clk 0:00:15]}  Rg2+ {[%clk 0:00:24]} 33. Kf3 {[%clk 0:00:15]}  Rc2 {[%clk 0:00:25]} 34. Ke4 {[%clk 0:00:14]}  g4 {[%clk 0:00:20]} 35. Bxa7 {[%clk 0:00:09]}  g3 {[%clk 0:00:19]} 36. a5 {[%clk 0:00:08]}  g2 {[%clk 0:00:19]} 37. a6 {[%clk 0:00:08]}  Rc1 {[%clk 0:00:13]} 38. Rc7 {[%clk 0:00:03]}  Re1+ {[%clk 0:00:08]} 39. Kd3 {[%clk 0:00:03]}  g1=Q {[%clk 0:00:08]} 40. Bxg1 {[%clk 0:00:03]}  Rxg1 {[%clk 0:00:09]} 41. Rxc6+ {[%clk 0:00:03]}  Kf5 {[%clk 0:00:09]} 42. b4 {[%clk 0:00:04]}  Ra1 {[%clk 0:00:06]} 43. b5 {[%clk 0:00:04]}  Ke5 {[%clk 0:00:04]} 44. b6 {[%clk 0:00:03]}  Rxa6 {[%clk 0:00:02]} 45. b7 {[%clk 0:00:04]}  Rxc6 {[%clk 0:00:02]} 46. b8=Q+ {[%clk 0:00:04]}  Rd6+ {[%clk 0:00:03]} 47. Kc2 {[%clk 0:00:04]}  Bf6 {[%clk 0:00:03]} 48. Qb5+ {[%clk 0:00:04]}  Ke6 {[%clk 0:00:04]} 49. c4 {[%clk 0:00:04]}  Be7 {[%clk 0:00:04]} 50. Kc3 {[%clk 0:00:02]}  Rd7 {[%clk 0:00:03]} 51. Qh5 {[%clk 0:00:02]}  Rc7 {[%clk 0:00:03]} 52. Qg4+ {[%clk 0:00:02]}  Kd6 {[%clk 0:00:03]} 53. Qf5 {[%clk 0:00:02]}  Rc5 {[%clk 0:00:03]} 54. Qf4+ {[%clk 0:00:02]}  Kd7 {[%clk 0:00:03]} 55. Qe4 {[%clk 0:00:02]}  Rg5 {[%clk 0:00:04]} 56. Qd4+ {[%clk 0:00:02]}  Ke8 {[%clk 0:00:03]} 57. Qe4 {[%clk 0:00:02]}  Rc5 {[%clk 0:00:03]} 58. Qe6 {[%clk 0:00:02]}  Rg5 {[%clk 0:00:04]} 59. Kd4 {[%clk 0:00:02]}  Kd8 {[%clk 0:00:03]} 60. Qb6+ {[%clk 0:00:02]}  Ke8 {[%clk 0:00:03]} 61. Qc6+ {[%clk 0:00:02]}  Kf8 {[%clk 0:00:03]} 62. Qd7 {[%clk 0:00:03]}  Kf7 {[%clk 0:00:04]} 63. Qc8 {[%clk 0:00:02]}  Kf6 {[%clk 0:00:03]} 64. Ke4 {[%clk 0:00:02]}  Kf7 {[%clk 0:00:03]} 65. Qd7 {[%clk 0:00:02]}  Rc5 {[%clk 0:00:03]} 66. Kd4 {[%clk 0:00:02]}  Rg5 {[%clk 0:00:04]} 67. Qh3 {[%clk 0:00:02]}  Kf8 {[%clk 0:00:04]} 68. Qf3+ {[%clk 0:00:03]}  Ke8 {[%clk 0:00:04]} 69. Qf4 {[%clk 0:00:02]}  Kd7 {[%clk 0:00:04]} 70. Qe4 {[%clk 0:00:02]}  Ke8 {[%clk 0:00:04]} 71. Qc6+ {[%clk 0:00:03]}  Kf7 {[%clk 0:00:04]} 72. Ke4 {[%clk 0:00:03]}  Kf8 {[%clk 0:00:04]} 73. Kf4 {[%clk 0:00:04]}  Rc5 {[%clk 0:00:04]} 74. Qe6 {[%clk 0:00:04]}  Ke8 {[%clk 0:00:04]} 75. Ke4 {[%clk 0:00:04]}  Kf8 {[%clk 0:00:05]} 76. Kd4 {[%clk 0:00:03]}  Rg5 {[%clk 0:00:04]} 77. Kc3 {[%clk 0:00:03]}  Ke8 {[%clk 0:00:05]} 78. Kb3 {[%clk 0:00:03]}  Kf8 {[%clk 0:00:05]} 79. Ka4 {[%clk 0:00:03]}  Ke8 {[%clk 0:00:05]} 80. Qc8+ {[%clk 0:00:03]}  Kf7 {[%clk 0:00:06]} 81. Qc6 {[%clk 0:00:04]}  Kf8 {[%clk 0:00:05]} 82. Qf3+ {[%clk 0:00:04]}  Ke8 {[%clk 0:00:05]} 83. Qe3 {[%clk 0:00:05]}  Kf8 {[%clk 0:00:05]} 84. Kb3 {[%clk 0:00:05]}  Ke8 {[%clk 0:00:06]} 85. Qf4 {[%clk 0:00:04]}  Kd8 {[%clk 0:00:05]} 86. Qb8+ {[%clk 0:00:04]}  Kd7 {[%clk 0:00:05]} 87. Qb7+ {[%clk 0:00:04]}  Ke8 {[%clk 0:00:06]} 88. Qc8+ {[%clk 0:00:05]}  Kf7 {[%clk 0:00:06]} 89. Kc3 {[%clk 0:00:05]}  Rc5 {[%clk 0:00:06]} 90. Qd7 {[%clk 0:00:04]}  Rg5 {[%clk 0:00:06]} 91. Kd4 {[%clk 0:00:05]}  Kf8 {[%clk 0:00:06]} 92. Ke4 {[%clk 0:00:05]}  Kf7 {[%clk 0:00:06]} 93. Kf4 {[%clk 0:00:05]}  Rc5 {[%clk 0:00:06]} 94. Qd4 {[%clk 0:00:05]}  Ke8 {[%clk 0:00:06]} 95. Kg4 {[%clk 0:00:05]}  Rg5+ {[%clk 0:00:05]} 96. Kf3 {[%clk 0:00:05]}  Rc5 {[%clk 0:00:05]} 97. Qe4 {[%clk 0:00:05]}  Rg5 {[%clk 0:00:06]} 98. Qc6+ {[%clk 0:00:05]}  Kf8 {[%clk 0:00:05]} 99. Kf4 {[%clk 0:00:04]} 1/2-1/2


[Site "https://www.chess.com"]

[Event "Titled Tuesday Blitz August 1 Early 2023"]
[White "Baskakov, Egor"]
[Black "Xu, Xiangyu"]
[WhiteFideId "24197866"]
[BlackFideId "8608288"]
[WhiteElo "2942"]
[BlackElo "3012"]
[Result "1/2-1/2"]
[Round "9"]
[TimeControl "180+1"]
[Date "2023.08.01"]
[WhiteClock "0:02:44"]
[BlackClock "0:02:37"]
[Board "4"]

1. e4 {[%clk 0:03:00]}  e5 {[%clk 0:02:55]} 2. Nc3 {[%clk 0:03:00]}  Nf6 {[%clk 0:02:54]} 3. g3 {[%clk 0:03:00]}  Bc5 {[%clk 0:02:53]} 4. Bg2 {[%clk 0:03:01]}  c6 {[%clk 0:02:53]} 5. Nge2 {[%clk 0:03:00]}  d5 {[%clk 0:02:53]} 6. exd5 {[%clk 0:03:01]}  cxd5 {[%clk 0:02:54]} 7. d4 {[%clk 0:03:02]}  exd4 {[%clk 0:02:53]} 8. Nxd4 {[%clk 0:03:03]}  O-O {[%clk 0:02:53]} 9. O-O {[%clk 0:03:02]}  Bg4 {[%clk 0:02:54]} 10. Qd3 {[%clk 0:03:02]}  Bxd4 {[%clk 0:02:54]} 11. Qxd4 {[%clk 0:03:03]}  Nc6 {[%clk 0:02:54]} 12. Qc5 {[%clk 0:03:03]}  d4 {[%clk 0:02:53]} 13. Ne4 {[%clk 0:03:04]}  Rc8 {[%clk 0:02:44]} 14. Nd6 {[%clk 0:02:55]}  b6 {[%clk 0:02:36]} 15. Qa3 {[%clk 0:02:50]}  Rc7 {[%clk 0:02:36]} 16. Nb5 {[%clk 0:02:44]}  Rc8 {[%clk 0:02:36]} 17. Nd6 {[%clk 0:02:44]}  Rc7 {[%clk 0:02:37]} 18. Nb5 {[%clk 0:02:44]}  Rc8 {[%clk 0:02:37]} 19. Nd6 {[%clk 0:02:44]} 1/2-1/2


[Site "https://www.chess.com"]

[Event "Titled Tuesday Blitz August 1 Early 2023"]
[White "Khubukshanov, Erdem"]
[Black "Firouzja, Alireza"]
[WhiteFideId "54114527"]
[BlackFideId "12573981"]
[WhiteElo "2883"]
[BlackElo "3075"]
[Result "0-1"]
[Round "9"]
[TimeControl "180+1"]
[Date "2023.08.01"]
[WhiteClock "0:00:06"]
[BlackClock "0:00:06"]
[Board "6"]

1. e4 {[%clk 0:03:00]}  c5 {[%clk 0:02:56]} 2. Nf3 {[%clk 0:03:01]}  d6 {[%clk 0:02:57]} 3. Bb5+ {[%clk 0:02:59]}  Nd7 {[%clk 0:02:57]} 4. Ba4 {[%clk 0:02:58]}  Nf6 {[%clk 0:02:56]} 5. O-O {[%clk 0:02:58]}  e6 {[%clk 0:02:56]} 6. Re1 {[%clk 0:02:58]}  a6 {[%clk 0:02:56]} 7. c3 {[%clk 0:02:58]}  b5 {[%clk 0:02:56]} 8. Bc2 {[%clk 0:02:59]}  Bb7 {[%clk 0:02:56]} 9. d4 {[%clk 0:02:58]}  Be7 {[%clk 0:02:57]} 10. Nbd2 {[%clk 0:02:57]}  O-O {[%clk 0:02:55]} 11. Nf1 {[%clk 0:02:57]}  Rc8 {[%clk 0:02:55]} 12. Ng3 {[%clk 0:02:57]}  Qc7 {[%clk 0:02:55]} 13. Bd3 {[%clk 0:02:56]}  Rfe8 {[%clk 0:02:52]} 14. h3 {[%clk 0:02:53]}  h6 {[%clk 0:02:52]} 15. Be3 {[%clk 0:02:53]}  cxd4 {[%clk 0:02:52]} 16. cxd4 {[%clk 0:02:54]}  d5 {[%clk 0:02:49]} 17. e5 {[%clk 0:02:28]}  Ne4 {[%clk 0:02:48]} 18. Nh5 {[%clk 0:02:29]}  Nf8 {[%clk 0:02:33]} 19. Nd2 {[%clk 0:02:25]}  Ng6 {[%clk 0:02:31]} 20. Qg4 {[%clk 0:02:20]}  Bb4 {[%clk 0:02:26]} 21. Nxe4 {[%clk 0:01:58]}  dxe4 {[%clk 0:02:24]} 22. Rec1 {[%clk 0:01:58]}  Qxc1+ {[%clk 0:01:37]} 23. Rxc1 {[%clk 0:01:57]}  Rxc1+ {[%clk 0:01:36]} 24. Bxc1 {[%clk 0:01:57]}  exd3 {[%clk 0:01:37]} 25. Qd1 {[%clk 0:01:53]}  Rc8 {[%clk 0:01:35]} 26. Be3 {[%clk 0:01:47]}  Rc2 {[%clk 0:01:07]} 27. Qxd3 {[%clk 0:01:21]}  Rxb2 {[%clk 0:01:04]} 28. a3 {[%clk 0:01:19]}  Bf8 {[%clk 0:00:58]} 29. Bc1 {[%clk 0:01:00]}  Ra2 {[%clk 0:00:53]} 30. Qb1 {[%clk 0:00:56]}  Bd5 {[%clk 0:00:52]} 31. Bxh6 {[%clk 0:00:31]}  Rxa3 {[%clk 0:00:51]} 32. Nf6+ {[%clk 0:00:26]}  gxf6 {[%clk 0:00:47]} 33. Bxf8 {[%clk 0:00:26]}  Nxf8 {[%clk 0:00:47]} 34. exf6 {[%clk 0:00:25]}  a5 {[%clk 0:00:36]} 35. Qc1 {[%clk 0:00:24]}  Nd7 {[%clk 0:00:18]} 36. Qxa3 {[%clk 0:00:24]}  Nxf6 {[%clk 0:00:19]} 37. Qxa5 {[%clk 0:00:22]}  Bc4 {[%clk 0:00:19]} 38. g4 {[%clk 0:00:22]}  Nd5 {[%clk 0:00:19]} 39. Qd8+ {[%clk 0:00:19]}  Kg7 {[%clk 0:00:19]} 40. Qg5+ {[%clk 0:00:19]}  Kf8 {[%clk 0:00:20]} 41. Qd8+ {[%clk 0:00:20]}  Kg7 {[%clk 0:00:20]} 42. Qc8 {[%clk 0:00:21]}  Bd3 {[%clk 0:00:19]} 43. g5 {[%clk 0:00:15]}  b4 {[%clk 0:00:19]} 44. h4 {[%clk 0:00:14]}  b3 {[%clk 0:00:06]} 45. Qb7 {[%clk 0:00:14]}  Bc2 {[%clk 0:00:06]} 46. h5 {[%clk 0:00:15]}  Nf4 {[%clk 0:00:05]} 47. g6 {[%clk 0:00:15]}  Nxh5 {[%clk 0:00:05]} 48. Qxf7+ {[%clk 0:00:15]}  Kh6 {[%clk 0:00:06]} 49. f4 {[%clk 0:00:11]}  Ng7 {[%clk 0:00:03]} 50. Qf6 {[%clk 0:00:10]}  Bxg6 {[%clk 0:00:03]} 51. Qh4+ {[%clk 0:00:09]}  Nh5 {[%clk 0:00:03]} 52. Qg5+ {[%clk 0:00:09]}  Kh7 {[%clk 0:00:03]} 53. Qe7+ {[%clk 0:00:05]}  Kh6 {[%clk 0:00:03]} 54. Qf8+ {[%clk 0:00:04]}  Ng7 {[%clk 0:00:02]} 55. Qh8+ {[%clk 0:00:04]}  Bh7 {[%clk 0:00:03]} 56. Qb8 {[%clk 0:00:05]}  Bc2 {[%clk 0:00:02]} 57. Kf2 {[%clk 0:00:05]}  Nf5 {[%clk 0:00:02]} 58. Qf8+ {[%clk 0:00:05]}  Kg6 {[%clk 0:00:02]} 59. Qg8+ {[%clk 0:00:05]}  Kf6 {[%clk 0:00:03]} 60. Qg5+ {[%clk 0:00:05]}  Kf7 {[%clk 0:00:03]} 61. Qh5+ {[%clk 0:00:06]}  Ke7 {[%clk 0:00:03]} 62. Qh7+ {[%clk 0:00:06]}  Kd6 {[%clk 0:00:03]} 63. Qb7 {[%clk 0:00:05]}  Nxd4 {[%clk 0:00:03]} 64. Ke3 {[%clk 0:00:05]}  Nf5+ {[%clk 0:00:03]} 65. Kd2 {[%clk 0:00:06]}  Nd4 {[%clk 0:00:02]} 66. Kc3 {[%clk 0:00:06]}  Nc6 {[%clk 0:00:02]} 67. Qb6 {[%clk 0:00:06]}  Kd7 {[%clk 0:00:03]} 68. Qc5 {[%clk 0:00:06]}  Ne7 {[%clk 0:00:03]} 69. Qe5 {[%clk 0:00:06]}  Nd5+ {[%clk 0:00:03]} 70. Kb2 {[%clk 0:00:06]}  Nb6 {[%clk 0:00:03]} 71. Qg7+ {[%clk 0:00:06]}  Kc6 {[%clk 0:00:03]} 72. Qe7 {[%clk 0:00:05]}  Nc4+ {[%clk 0:00:03]} 73. Kc3 {[%clk 0:00:06]}  Nd6 {[%clk 0:00:01]} 74. Qxe6 {[%clk 0:00:05]}  Kc5 {[%clk 0:00:02]} 75. Qe5+ {[%clk 0:00:05]}  Kc6 {[%clk 0:00:02]} 76. Kb2 {[%clk 0:00:04]}  Nc4+ {[%clk 0:00:03]} 77. Kc3 {[%clk 0:00:05]}  Nxe5 {[%clk 0:00:04]} 78. fxe5 {[%clk 0:00:06]}  Kd5 {[%clk 0:00:04]} 79. Kb2 {[%clk 0:00:06]}  Kxe5 {[%clk 0:00:05]} 80. Kc3 {[%clk 0:00:06]}  Kd5 {[%clk 0:00:06]} 0-1


[Site "https://www.chess.com"]

[Event "Titled Tuesday Blitz August 1 Early 2023"]
[White "Harsh Suresh"]
[Black "Pranesh M"]
[WhiteFideId "45018464"]
[BlackFideId "35028600"]
[WhiteElo "2894"]
[BlackElo "3065"]
[Result "1/2-1/2"]
[Round "9"]
[TimeControl "180+1"]
[Date "2023.08.01"]
[WhiteClock "0:00:30"]
[BlackClock "0:00:28"]
[Board "7"]

1. e4 {[%clk 0:02:55]}  e5 {[%clk 0:03:00]} 2. Nf3 {[%clk 0:02:54]}  Nc6 {[%clk 0:03:00]} 3. Bb5 {[%clk 0:02:54]}  a6 {[%clk 0:03:00]} 4. Ba4 {[%clk 0:02:53]}  Nf6 {[%clk 0:03:01]} 5. O-O {[%clk 0:02:53]}  Bc5 {[%clk 0:03:00]} 6. Bxc6 {[%clk 0:02:47]}  dxc6 {[%clk 0:03:01]} 7. d3 {[%clk 0:02:45]}  Nd7 {[%clk 0:02:58]} 8. Qe2 {[%clk 0:02:43]}  Qe7 {[%clk 0:02:56]} 9. Be3 {[%clk 0:02:43]}  f6 {[%clk 0:02:56]} 10. Nbd2 {[%clk 0:02:43]}  O-O {[%clk 0:02:54]} 11. a4 {[%clk 0:02:42]}  Kh8 {[%clk 0:02:54]} 12. Nb3 {[%clk 0:02:32]}  Bd6 {[%clk 0:02:51]} 13. a5 {[%clk 0:02:31]}  Re8 {[%clk 0:02:51]} 14. Nfd2 {[%clk 0:02:30]}  Nc5 {[%clk 0:02:47]} 15. Nxc5 {[%clk 0:02:28]}  Bxc5 {[%clk 0:02:48]} 16. Bxc5 {[%clk 0:02:29]}  Qxc5 {[%clk 0:02:49]} 17. Qe3 {[%clk 0:02:30]}  Qxe3 {[%clk 0:02:48]} 18. fxe3 {[%clk 0:02:30]}  Be6 {[%clk 0:02:49]} 19. Kf2 {[%clk 0:02:27]}  Kg8 {[%clk 0:02:49]} 20. h3 {[%clk 0:02:24]}  Kf7 {[%clk 0:02:50]} 21. Ke2 {[%clk 0:02:24]}  Ke7 {[%clk 0:02:50]} 22. d4 {[%clk 0:02:14]}  c5 {[%clk 0:02:22]} 23. d5 {[%clk 0:02:08]}  Bd7 {[%clk 0:02:22]} 24. c4 {[%clk 0:02:05]}  Kd6 {[%clk 0:02:21]} 25. Nb3 {[%clk 0:02:01]}  b6 {[%clk 0:02:20]} 26. Nc1 {[%clk 0:01:56]}  b5 {[%clk 0:02:17]} 27. b3 {[%clk 0:01:56]}  Reb8 {[%clk 0:02:13]} 28. Nd3 {[%clk 0:01:56]}  bxc4 {[%clk 0:02:12]} 29. bxc4 {[%clk 0:01:57]}  Rb3 {[%clk 0:02:12]} 30. Rfb1 {[%clk 0:01:52]}  Rab8 {[%clk 0:02:10]} 31. Rxb3 {[%clk 0:01:51]}  Rxb3 {[%clk 0:02:11]} 32. Kd2 {[%clk 0:01:51]}  Be8 {[%clk 0:02:10]} 33. Kc2 {[%clk 0:01:50]}  Rb8 {[%clk 0:02:09]} 34. Rb1 {[%clk 0:01:49]}  Ba4+ {[%clk 0:01:48]} 35. Kc1 {[%clk 0:01:49]}  Rxb1+ {[%clk 0:01:48]} 36. Kxb1 {[%clk 0:01:50]}  Bd1 {[%clk 0:01:47]} 37. h4 {[%clk 0:01:31]}  h5 {[%clk 0:01:19]} 38. Kb2 {[%clk 0:01:18]}  Be2 {[%clk 0:01:19]} 39. Kc3 {[%clk 0:01:17]}  g5 {[%clk 0:01:07]} 40. g3 {[%clk 0:01:15]}  Bf1 {[%clk 0:01:03]} 41. Nf2 {[%clk 0:01:11]}  Ke7 {[%clk 0:01:03]} 42. Nd3 {[%clk 0:01:10]}  Kd6 {[%clk 0:00:53]} 43. Nf2 {[%clk 0:01:10]}  Bg2 {[%clk 0:00:50]} 44. Kd3 {[%clk 0:01:05]}  Bf3 {[%clk 0:00:47]} 45. Nh3 {[%clk 0:00:30]}  Bg2 {[%clk 0:00:28]} 46. Nf2 {[%clk 0:00:30]}  Bf1+ {[%clk 0:00:28]} 47. Kc3 {[%clk 0:00:30]} 1/2-1/2


[Site "https://www.chess.com"]

[Event "Titled Tuesday Blitz August 1 Early 2023"]
[White "Idani, Pouya"]
[Black "Pranav, V"]
[WhiteFideId "12510130"]
[BlackFideId "25060783"]
[WhiteElo "2765"]
[BlackElo "3008"]
[Result "0-1"]
[Round "9"]
[TimeControl "180+1"]
[Date "2023.08.01"]
[WhiteClock "0:00:19"]
[BlackClock "0:00:03"]
[Board "12"]

1. e4 {[%clk 0:03:00]}  e5 {[%clk 0:02:59]} 2. Nf3 {[%clk 0:03:01]}  Nc6 {[%clk 0:03:00]} 3. Bb5 {[%clk 0:03:01]}  a6 {[%clk 0:03:00]} 4. Ba4 {[%clk 0:03:00]}  Nf6 {[%clk 0:03:00]} 5. O-O {[%clk 0:03:00]}  Be7 {[%clk 0:03:01]} 6. d3 {[%clk 0:02:59]}  d6 {[%clk 0:02:59]} 7. c3 {[%clk 0:02:58]}  O-O {[%clk 0:02:59]} 8. Nbd2 {[%clk 0:02:56]}  Re8 {[%clk 0:02:49]} 9. Re1 {[%clk 0:02:54]}  Bf8 {[%clk 0:02:49]} 10. d4 {[%clk 0:02:51]}  b5 {[%clk 0:02:48]} 11. Bc2 {[%clk 0:02:45]}  g6 {[%clk 0:02:38]} 12. d5 {[%clk 0:02:42]}  Ne7 {[%clk 0:02:38]} 13. b3 {[%clk 0:02:41]}  c5 {[%clk 0:02:27]} 14. dxc6 {[%clk 0:02:28]}  Nxc6 {[%clk 0:02:26]} 15. Nf1 {[%clk 0:02:29]}  Be6 {[%clk 0:02:24]} 16. Bg5 {[%clk 0:02:27]}  Rc8 {[%clk 0:02:21]} 17. Ne3 {[%clk 0:02:19]}  Be7 {[%clk 0:02:20]} 18. Bxf6 {[%clk 0:02:18]}  Bxf6 {[%clk 0:02:21]} 19. a4 {[%clk 0:02:03]}  b4 {[%clk 0:01:47]} 20. cxb4 {[%clk 0:01:53]}  Nxb4 {[%clk 0:01:46]} 21. Bd3 {[%clk 0:01:53]}  Nxd3 {[%clk 0:00:32]} 22. Qxd3 {[%clk 0:01:51]}  d5 {[%clk 0:00:28]} 23. Qxa6 {[%clk 0:01:28]}  dxe4 {[%clk 0:00:14]} 24. Rad1 {[%clk 0:01:28]}  Qe7 {[%clk 0:00:14]} 25. Nd2 {[%clk 0:01:28]}  Ra8 {[%clk 0:00:13]} 26. Qc6 {[%clk 0:01:25]}  Bg7 {[%clk 0:00:09]} 27. Qxe4 {[%clk 0:01:13]}  f5 {[%clk 0:00:09]} 28. Qc2 {[%clk 0:01:13]}  e4 {[%clk 0:00:08]} 29. Ndc4 {[%clk 0:01:13]}  h5 {[%clk 0:00:05]} 30. Nd5 {[%clk 0:01:10]}  Qc5 {[%clk 0:00:04]} 31. Nf4 {[%clk 0:01:03]}  Bf7 {[%clk 0:00:04]} 32. h4 {[%clk 0:01:00]}  Bh6 {[%clk 0:00:02]} 33. Nh3 {[%clk 0:00:58]}  Qe7 {[%clk 0:00:02]} 34. Nd6 {[%clk 0:00:54]}  Red8 {[%clk 0:00:01]} 35. Nxf7 {[%clk 0:00:54]}  Kxf7 {[%clk 0:00:02]} 36. g3 {[%clk 0:00:53]}  Rac8 {[%clk 0:00:02]} 37. Qe2 {[%clk 0:00:53]}  Qb4 {[%clk 0:00:02]} 38. Rxd8 {[%clk 0:00:53]}  Rxd8 {[%clk 0:00:03]} 39. Rd1 {[%clk 0:00:53]}  Rc8 {[%clk 0:00:01]} 40. Qa6 {[%clk 0:00:46]}  Rc7 {[%clk 0:00:01]} 41. Rd6 {[%clk 0:00:41]}  Qxb3 {[%clk 0:00:01]} 42. Rf6+ {[%clk 0:00:41]}  Kg8 {[%clk 0:00:01]} 43. Rxg6+ {[%clk 0:00:40]}  Bg7 {[%clk 0:00:02]} 44. Qe6+ {[%clk 0:00:23]}  Qxe6 {[%clk 0:00:02]} 45. Rxe6 {[%clk 0:00:23]}  Kf7 {[%clk 0:00:02]} 46. Ra6 {[%clk 0:00:23]}  Rc1+ {[%clk 0:00:02]} 47. Kg2 {[%clk 0:00:23]}  Rc2 {[%clk 0:00:03]} 48. Ra7+ {[%clk 0:00:20]}  Kg8 {[%clk 0:00:02]} 49. Re7 {[%clk 0:00:20]}  Bd4 {[%clk 0:00:02]} 50. a5 {[%clk 0:00:19]}  e3 {[%clk 0:00:02]} 51. Kf3 {[%clk 0:00:19]}  exf2 {[%clk 0:00:02]} 52. Kg2 {[%clk 0:00:19]}  Rc1 {[%clk 0:00:02]} 53. Nxf2 {[%clk 0:00:19]}  Rc2 {[%clk 0:00:02]} 54. Kf3 {[%clk 0:00:19]}  Rxf2# {[%clk 0:00:03]} 0-1


[Site "https://www.chess.com"]